bitfinex-derivatives/quotes_BTCF0:USTF0_20260104
["timestamp","ask_amount","ask_price","bid_price","bid_amount"]
[1767552046776,0.010974,91161.0,91146.0,0.00997689]
[1767552046974,0.010974,91161.0,91146.0,0.03997689]
[1767552047874,0.010974,91162.0,91146.0,0.03997689]
[1767552048077,0.010974,91162.0,91147.0,0.4]
[1767552048278,0.010974,91162.0,91147.0,0.43]
[1767552048968,0.03759928,91169.0,91147.0,0.43]
[1767552050374,0.010974,91160.0,91147.0,0.43]
[1767552051564,0.02834727,91163.0,91147.0,0.4]
[1767552051969,0.010975,91156.0,91147.0,0.4]
[1767552052773,0.09328,91159.0,91147.0,0.4]
[1767552052970,0.09328,91159.0,91142.0,0.00014032]
[1767552052971,0.00925201,91157.0,91142.0,0.00014032]
[1767552053169,0.010975,91153.0,91143.0,0.4]
[1767552053571,0.010975,91152.0,91142.0,0.00014032]
[1767552054574,0.03759928,91151.0,91142.0,0.00014032]
[1767552054877,0.00925201,91151.0,91142.0,0.00014032]
[1767552055078,0.00705827,91151.0,91142.0,0.00014032]
[1767552056282,0.010976,91144.0,91142.0,3.2e-07]
[1767552056470,0.09328,91143.0,91142.0,3.2e-07]
[1767552056670,0.010975,91152.0,91143.0,0.4]
[1767552056875,0.010973,91173.0,91143.0,0.4]
[1767552056876,0.03507953,91151.0,91143.0,0.95849789]
[1767552057182,0.00011342,91150.0,91146.0,0.55849789]
[1767552057371,0.09328,91157.0,91151.0,0.548521]
[1767552057872,0.010975,91156.0,91151.0,0.548521]
[1767552058071,0.09328,91157.0,91151.0,0.548521]
[1767552058271,0.00013195,91156.0,91152.0,0.4]
[1767552059775,0.010973,91171.0,91152.0,0.4]
[1767552059980,0.09328,91169.0,91152.0,0.4]
[1767552061178,0.010974,91158.0,91152.0,0.4]
[1767552061374,0.09328,91159.0,91142.0,3.2e-07]
[1767552061770,0.010976,91149.0,91137.0,0.01720057]
[1767552062372,0.010975,91152.0,91137.0,0.01720057]
[1767552062572,0.09328,91159.0,91140.0,0.13250159]
[1767552062783,0.104254,91159.0,91142.0,0.010976]
[1767552063276,0.08482877,91176.0,91149.0,0.13250159]
[1767552063482,0.010973,91173.0,91149.0,0.13250159]
[1767552063866,0.010973,91173.0,91151.0,0.18993798]
[1767552064069,0.09328,91175.0,91151.0,0.18993798]
[1767552064274,0.02491787,91174.0,91151.0,0.18993798]
[1767552064472,0.02491787,91173.0,91151.0,0.18993798]
[1767552064767,0.02491787,91172.0,91151.0,0.18993798]
[1767552064972,0.09328,91175.0,91151.0,0.18993798]
[1767552065182,0.02493247,91174.0,91151.0,0.18993798]
[1767552065385,0.02493247,91173.0,91151.0,0.18993798]
[1767552065586,0.09328,91175.0,91151.0,0.18993798]
[1767552065778,0.02494211,91174.0,91151.0,0.18993798]
[1767552066079,0.09328,91175.0,91151.0,0.18993798]
[1767552066080,0.02494211,91173.0,91151.0,0.18993798]
[1767552066282,0.010973,91170.0,91157.0,0.18993798]
[1767552066483,0.09328,91169.0,91157.0,0.18993798]
[1767552067279,0.09328,91170.0,91158.0,0.18993798]
[1767552067476,0.09328,91172.0,91158.0,0.18993798]
[1767552068283,0.02500146,91171.0,91158.0,0.18993798]
[1767552068482,0.02500146,91170.0,91158.0,0.18993798]
[1767552068682,0.02500146,91169.0,91158.0,0.18993798]
[1767552068884,0.09328,91172.0,91158.0,0.18993798]
[1767552069185,0.02500722,91171.0,91158.0,0.18993798]
[1767552069387,0.02500722,91170.0,91158.0,0.18993798]
[1767552069683,0.02500722,91169.0,91158.0,0.18993798]
[1767552069883,0.09328,91172.0,91158.0,0.18993798]
[1767552071179,0.010973,91169.0,91158.0,0.18993798]
[1767552072087,0.09328,91172.0,91159.0,0.18993798]
[1767552072384,0.104253,91172.0,91159.0,0.18993798]
[1767552072986,0.05871293,91185.0,91164.0,0.09765521]
[1767552073177,0.48539907,91186.0,91168.0,0.18993798]
[1767552073377,0.09328,91184.0,91168.0,0.18993798]
[1767552073584,0.010972,91176.0,91168.0,0.18993798]
[1767552074086,0.09328,91184.0,91168.0,0.09228277]
[1767552075288,0.010972,91176.0,91168.0,0.09228277]
[1767552076681,0.010973,91174.0,91168.0,0.09228277]
[1767552078581,0.09328,91184.0,91168.0,0.09228277]
[1767552078788,0.010972,91180.0,91168.0,0.09228277]
[1767552079280,0.09328,91181.0,91168.0,0.18993798]
[1767552079585,0.05871293,91189.0,91173.0,0.18993798]
[1767552079784,0.010972,91180.0,91175.0,0.09765521]
[1767552080085,0.09328,91188.0,91176.0,0.09228277]
[1767552080280,0.09328,91188.0,91178.0,0.18993798]
[1767552080489,0.09328,91188.0,91179.0,0.18993798]
[1767552080983,0.010971,91185.0,91179.0,0.18993798]
[1767552081179,0.09328,91189.0,91179.0,0.18993798]
[1767552081582,0.010971,91185.0,91179.0,0.18993798]
[1767552081782,0.02490535,91184.0,91179.0,0.18993798]
[1767552081972,0.02490535,91183.0,91180.0,0.09228277]
[1767552082177,0.09328,91189.0,91180.0,0.09228277]
[1767552082787,0.010971,91184.0,91180.0,0.09228277]
[1767552083087,0.010971,91188.0,91180.0,0.18993798]
[1767552083282,0.05871293,91198.0,91172.0,0.010973]
[1767552083283,0.00219302,91199.0,91184.0,0.18993798]
[1767552083485,0.05871293,91206.0,91187.0,0.18993798]
[1767552083784,0.01097,91193.0,91187.0,0.18993798]
[1767552083984,0.09328,91202.0,91187.0,0.18993798]
[1767552084376,0.01097,91196.0,91187.0,0.18993798]
[1767552084577,0.09328,91202.0,91188.0,0.18993798]
[1767552084979,0.010969,91203.0,91194.0,0.18993798]
[1767552085178,0.09328,91211.0,91195.0,0.18993798]
[1767552085374,0.09328,91211.0,91199.0,0.18993798]
[1767552085592,0.09328,91211.0,91200.0,0.09228277]
[1767552086282,0.09328,91211.0,91201.0,0.09228277]
[1767552086482,0.0942906,91224.0,91201.0,0.09228277]
[1767552086483,0.0942906,91224.0,91201.0,0.18993798]
[1767552086682,0.010968,91212.0,91203.0,0.09228277]
[1767552087188,0.010968,91212.0,91203.0,0.18993798]
[1767552087386,0.0942906,91215.0,91195.0,0.09328]
[1767552087576,0.010969,91202.0,91192.0,0.09765521]
[1767552087991,0.010968,91210.0,91192.0,0.10862521]
[1767552088183,0.010968,91213.0,91196.0,0.09765521]
[1767552088489,0.010968,91210.0,91196.0,0.09765521]
[1767552088791,0.010967,91220.0,91196.0,0.09765521]
[1767552089381,0.010967,91220.0,91198.0,0.09765521]
[1767552089592,0.010967,91220.0,91199.0,0.09228277]
[1767552089790,0.010967,91220.0,91200.0,0.09765521]
[1767552089979,0.010967,91220.0,91201.0,0.09228277]
[1767552090184,0.010967,91220.0,91191.0,0.09328]
[1767552090185,0.010968,91213.0,91203.0,0.09193392]
[1767552090487,0.010968,91213.0,91204.0,0.09063344]
[1767552091291,0.010968,91213.0,91203.0,0.09193392]
[1767552091489,0.09328,91223.0,91204.0,0.09063344]
[1767552091788,0.010967,91222.0,91206.0,0.09063344]
[1767552091990,0.010967,91222.0,91203.0,0.010969]
[1767552091991,0.104247,91223.0,91209.0,0.09063344]
[1767552092577,0.010967,91223.0,91209.0,0.09063344]
[1767552092784,0.010967,91218.0,91209.0,0.09063344]
[1767552094088,0.0021923,91229.0,91209.0,0.09063344]
[1767552094291,0.010967,91221.0,91209.0,0.09063344]
[1767552094491,0.010967,91219.0,91211.0,0.10586762]
[1767552094691,0.010967,91219.0,91209.0,0.19650106]
[1767552095890,0.0021923,91229.0,91210.0,0.09759972]
[1767552096095,0.0021923,91229.0,91219.0,6.2e-07]
[1767552096393,0.0021923,91229.0,91210.0,0.09759972]
[1767552096394,0.010967,91218.0,91210.0,0.09759972]
[1767552096893,0.010967,91221.0,91210.0,0.09759972]
[1767552097487,0.010967,91224.0,91210.0,0.09759972]
[1767552097888,0.0021923,91229.0,91210.0,0.09759972]
[1767552098089,0.010967,91223.0,91210.0,0.09759972]
[1767552098390,0.010966,91226.0,91216.0,0.09759972]
[1767552098693,0.010966,91226.0,91217.0,0.09759972]
[1767552099390,0.0131583,91229.0,91217.0,0.09759972]
[1767552099595,0.0131583,91229.0,91219.0,0.10586762]
[1767552100499,0.0131583,91229.0,91217.0,0.09759972]
[1767552101586,0.0021923,91229.0,91218.0,0.09759972]
[1767552102697,0.104246,91232.0,91219.0,0.09759972]
[1767552103196,0.104246,91232.0,91220.0,0.09759972]
[1767552103896,0.010965,91239.0,91224.0,0.09759972]
[1767552104087,0.010964,91242.0,91228.0,0.09759972]
[1767552104287,0.09324,91244.0,91229.0,0.09759972]
[1767552104494,0.09324,91244.0,91230.0,0.09759972]
[1767552104695,0.09324,91244.0,91229.0,0.09619622]
[1767552104696,0.09425179,91253.0,91232.0,0.09759972]
[1767552104896,0.010964,91247.0,91232.0,0.09759972]
[1767552105188,0.010964,91247.0,91233.0,0.09759972]
[1767552105503,0.010964,91245.0,91233.0,0.09759972]
[1767552105801,0.010964,91245.0,91233.0,0.19379594]
[1767552106102,0.09324,91252.0,91236.0,0.09619622]
[1767552106299,0.02462011,91251.0,91237.0,0.09759972]
[1767552106493,0.09324,91252.0,91237.0,0.09759972]
[1767552107006,0.010964,91244.0,91237.0,0.09759972]
[1767552107394,0.010964,91247.0,91237.0,0.09759972]
[1767552107894,0.09324,91252.0,91237.0,0.09759972]
[1767552108095,0.02462398,91251.0,91237.0,0.09759972]
[1767552108396,0.02462849,91250.0,91237.0,0.09759972]
[1767552108593,0.09324,91252.0,91237.0,0.09759972]
[1767552108792,0.02462849,91251.0,91237.0,0.09759972]
[1767552108992,0.02462849,91250.0,91237.0,0.09759972]
[1767552109202,0.010964,91247.0,91237.0,0.09759972]
[1767552109391,0.09324,91252.0,91237.0,0.09759972]
[1767552109593,0.02463476,91251.0,91237.0,0.09759972]
[1767552109803,0.010965,91240.0,91221.0,0.09324]
[1767552110099,0.010964,91243.0,91221.0,0.09324]
[1767552110502,0.09324,91252.0,91221.0,0.49324]
[1767552110696,0.010964,91247.0,91227.0,0.010966]
[1767552111703,0.010964,91247.0,91228.0,0.19379594]
[1767552112003,0.010964,91247.0,91233.0,0.09759972]
[1767552112606,0.09324,91252.0,91236.0,0.09759972]
[1767552112793,0.02465706,91251.0,91236.0,0.09759972]
[1767552112993,0.02465706,91250.0,91236.0,0.09759972]
[1767552113205,0.010964,91245.0,91236.0,0.09759972]
[1767552113704,0.010964,91245.0,91236.0,0.08659972]
[1767552114300,0.024678,91244.0,91236.0,0.08659972]
[1767552114501,0.010914,91245.0,91236.0,0.08659972]
[1767552114701,0.02467695,91244.0,91236.0,0.08659972]
[1767552114906,0.010914,91245.0,91236.0,0.08659972]
[1767552115094,0.02467704,91244.0,91236.0,0.08659972]
[1767552115295,0.010914,91245.0,91236.0,0.08659972]
[1767552115494,0.0246815,91244.0,91236.0,0.08659972]
[1767552115695,0.010914,91245.0,91236.0,0.08659972]
[1767552115991,0.0246815,91244.0,91236.0,0.08659972]
[1767552116192,0.010914,91245.0,91236.0,0.08659972]
[1767552116392,0.02468508,91244.0,91236.0,0.08659972]
[1767552116604,0.010963,91250.0,91242.0,0.09759972]
[1767552116803,0.09324,91257.0,91243.0,0.09759972]
[1767552117004,0.010963,91252.0,91243.0,0.09759972]
[1767552117202,0.09324,91257.0,91243.0,0.09759972]
[1767552117399,0.010963,91252.0,91243.0,0.09759972]
[1767552117596,0.09324,91257.0,91243.0,0.09759972]
[1767552119708,0.010963,91256.0,91243.0,0.09759972]
[1767552120306,0.09324,91257.0,91243.0,0.09759972]
[1767552120508,0.09324,91257.0,91244.0,0.09357292]
[1767552120706,0.010963,91256.0,91245.0,0.09357292]
[1767552120909,0.09324,91257.0,91245.0,0.09357292]
[1767552121319,0.09685349,91273.0,91250.0,0.09357292]
[1767552121610,0.010961,91268.0,91254.0,0.19352078]
[1767552121915,0.010961,91266.0,91255.0,0.09357292]
[1767552122113,0.010963,91253.0,91244.0,0.09357292]
[1767552122411,0.10781549,91259.0,91241.0,0.09324]
[1767552122705,0.09685349,91259.0,91238.0,0.09357292]
[1767552122909,0.09324,91266.0,91234.0,0.09357292]
[1767552122910,0.010964,91244.0,91234.0,0.09357292]
[1767552123114,0.010964,91242.0,91234.0,0.18681292]
[1767552123297,0.010964,91245.0,91234.0,0.18681292]
[1767552123498,0.09685349,91254.0,91235.0,0.09357292]
[1767552123718,0.09302666,91259.0,91235.0,0.19352078]
[1767552123907,0.010963,91250.0,91236.0,0.09357292]
[1767552124511,0.010963,91256.0,91236.0,0.09357292]
[1767552124909,0.010964,91244.0,91236.0,0.09357292]
[1767552125301,0.010964,91248.0,91236.0,0.09357292]
[1767552125504,0.010964,91246.0,91236.0,0.09357292]
[1767552129514,0.09685349,91254.0,91230.0,0.09357292]
[1767552129710,0.09685349,91247.0,91229.0,0.0932]
[1767552129908,0.02460458,91246.0,91229.0,0.18677292]
[1767552130213,0.02460458,91245.0,91230.0,0.09357292]
[1767552130407,0.02460458,91244.0,91231.0,0.09357292]
[1767552130608,0.02460458,91243.0,91232.0,0.09357292]
[1767552132524,0.010965,91240.0,91232.0,0.09357292]
[1767552132712,0.09685349,91253.0,91232.0,0.09357292]
[1767552132913,0.02462215,91252.0,91232.0,0.09357292]
[1767552133212,0.09685349,91253.0,91232.0,0.09357292]
[1767552133213,0.02462215,91251.0,91232.0,0.09357292]
[1767552133407,0.02462215,91250.0,91233.0,0.09357292]
[1767552133612,0.010964,91244.0,91233.0,0.09357292]
[1767552133812,0.02462215,91243.0,91233.0,0.09357292]
[1767552136219,0.010964,91244.0,91233.0,0.09357292]
[1767552136519,0.010964,91242.0,91233.0,0.09357292]
[1767552136917,0.10781649,91252.0,91233.0,0.09357292]
[1767552137108,0.02463362,91251.0,91233.0,0.09357292]
[1767552137309,0.02463362,91250.0,91233.0,0.09357292]
[1767552137614,0.02463362,91249.0,91233.0,0.09357292]
[1767552137813,0.02463362,91248.0,91233.0,0.09357292]
[1767552138014,0.02463362,91247.0,91233.0,0.09357292]
[1767552138221,0.010964,91242.0,91233.0,0.09357292]
[1767552139623,0.010964,91242.0,91234.0,0.09357292]
[1767552140320,0.010965,91241.0,91229.0,0.0932]
[1767552140521,0.010965,91241.0,91229.0,0.18677292]
[1767552140722,0.010965,91241.0,91230.0,0.09357292]
[1767552142129,0.010964,91244.0,91230.0,0.09357292]
[1767552142420,0.010963,91252.0,91243.0,0.09357292]
[1767552142720,0.0932,91256.0,91243.0,0.09357292]
[1767552142912,0.010963,91253.0,91233.0,0.09357292]
[1767552143116,0.0932,91256.0,91236.0,0.09994786]
[1767552143334,0.0932,91256.0,91237.0,0.09357292]
[1767552143925,0.18988015,91250.0,91230.0,0.09357292]
[1767552144129,0.18988015,91249.0,91230.0,0.09357292]
[1767552144427,0.010965,91240.0,91230.0,0.09357292]
[1767552146522,0.09685349,91249.0,91230.0,0.09357292]
[1767552146722,0.010964,91244.0,91231.0,0.09357292]
[1767552147532,0.09302666,91253.0,91232.0,0.09357292]
[1767552147533,0.010964,91242.0,91232.0,0.09357292]
[1767552149128,0.54312015,91266.0,91242.0,0.19352078]
[1767552149336,0.010962,91258.0,91245.0,0.09357292]
[1767552149833,0.010962,91261.0,91245.0,0.09357292]
[1767552150128,0.02465387,91260.0,91245.0,0.09357292]
[1767552150439,0.010962,91261.0,91245.0,0.09357292]
[1767552150440,0.02465387,91259.0,91245.0,0.09357292]
[1767552150734,0.010962,91261.0,91245.0,0.09357292]
[1767552150935,0.02465281,91260.0,91246.0,0.09644117]
[1767552151119,0.010962,91264.0,91247.0,0.09644117]
[1767552151120,0.02465281,91259.0,91247.0,0.09644117]
[1767552151320,0.010961,91267.0,91249.0,0.09644117]
[1767552151527,0.09773981,91273.0,91251.0,0.09644117]
[1767552151528,0.0246521,91266.0,91251.0,0.09644117]
[1767552151726,0.0932,91268.0,91246.0,0.010964]
[1767552151727,0.0246521,91265.0,91253.0,0.09644117]
[1767552151927,0.0246521,91264.0,91253.0,0.09644117]
[1767552152136,0.010962,91263.0,91253.0,0.09644117]
[1767552152336,0.0246521,91262.0,91249.0,0.09644117]
[1767552153337,0.010961,91266.0,91249.0,0.09644117]
[1767552153634,0.02465144,91265.0,91249.0,0.09644117]
[1767552153834,0.02465144,91264.0,91249.0,0.09644117]
[1767552154034,0.02465144,91263.0,91249.0,0.09644117]
[1767552154335,0.010961,91266.0,91249.0,0.19245496]
[1767552154530,0.0932,91268.0,91240.0,0.0932]
[1767552154531,0.0932,91268.0,91251.0,0.09004245]
[1767552154735,0.02464941,91267.0,91253.0,0.09004245]
[1767552154933,0.02464941,91266.0,91253.0,0.09004245]
[1767552155329,0.010961,91270.0,91258.0,0.00046546]
[1767552155525,0.19051434,91272.0,91249.0,0.00028675]
[1767552155729,0.19051434,91267.0,91248.0,0.09601379]
[1767552156538,0.010963,91255.0,91246.0,0.0932]
[1767552156838,0.20147634,91258.0,91243.0,0.0932]
[1767552157139,0.010963,91257.0,91243.0,0.0932]
[1767552157839,0.09220161,91262.0,91243.0,0.0932]
[1767552158044,0.19051434,91254.0,91237.0,0.0932]
[1767552158341,0.0932,91271.0,91256.0,0.09601379]
[1767552158634,0.01096,91276.0,91259.0,0.09601379]
[1767552159026,0.104159,91285.0,91266.0,0.09601379]
[1767552159231,0.01096,91281.0,91266.0,0.09601379]
[1767552159640,0.01096,91281.0,91268.0,0.00396396]
[1767552160239,0.124159,91284.0,91269.0,0.09997775]
[1767552160441,0.1132,91284.0,91271.0,0.00396396]
[1767552160646,0.1132,91284.0,91274.0,0.10572415]
[1767552161839,0.00219086,91289.0,91274.0,0.10572415]
[1767552161840,0.19151273,91300.0,91275.0,0.09601379]
[1767552162046,0.010958,91295.0,91280.0,0.10572415]
[1767552162434,0.060958,91293.0,91280.0,0.10572415]
[1767552162635,0.060958,91293.0,91275.0,0.09601379]
[1767552162943,0.010958,91292.0,91275.0,0.09601379]
[1767552163238,0.05,91293.0,91270.0,0.10572415]
[1767552163239,0.09831273,91285.0,91270.0,0.10572415]
[1767552163544,0.010959,91290.0,91276.0,0.00154766]
[1767552163739,0.010959,91290.0,91280.0,0.10572415]
[1767552164135,0.060958,91293.0,91280.0,0.10572415]
[1767552164336,0.05,91293.0,91280.0,0.10572415]
[1767552164638,0.010958,91292.0,91280.0,0.10572415]
[1767552164943,0.14831273,91293.0,91280.0,0.10572415]
[1767552165546,0.09831273,91292.0,91280.0,0.10572415]
[1767552165739,0.05,91293.0,91280.0,0.10572415]
[1767552165946,0.05,91293.0,91272.0,0.0932]
[1767552166148,0.05,91293.0,91280.0,0.10572415]
[1767552166839,0.010958,91292.0,91280.0,0.10572415]
[1767552167146,0.05,91293.0,91280.0,0.10572415]
[1767552168445,0.0932,91298.0,91283.0,0.10572415]
[1767552168645,0.0932,91302.0,91288.0,0.10572415]
[1767552168944,0.0932,91302.0,91261.0,0.010962]
[1767552168945,0.010957,91300.0,91290.0,0.10572415]
[1767552169145,0.02473519,91299.0,91280.0,0.10572415]
[1767552169349,0.010957,91301.0,91280.0,0.10572415]
[1767552169547,0.02473227,91300.0,91280.0,0.10572415]
[1767552169739,0.010957,91301.0,91280.0,0.10586067]
[1767552170054,0.123045,91300.0,91280.0,0.11682067]
[1767552170239,0.09220161,91305.0,91281.0,0.00013652]
[1767552170433,0.02469938,91304.0,91281.0,0.00013652]
[1767552170649,0.11789938,91303.0,91281.0,0.00013652]
[1767552170849,0.010957,91300.0,91281.0,0.00013652]
[1767552173452,0.010958,91298.0,91281.0,0.00013652]
[1767552173841,0.09831273,91297.0,91280.0,0.10572415]
[1767552174043,0.09831273,91295.0,91280.0,0.10572415]
[1767552174551,0.010958,91291.0,91280.0,0.10572415]
[1767552174944,0.010958,91293.0,91280.0,0.10572415]
[1767552175342,0.09831273,91288.0,91274.0,0.0932]
[1767552175646,0.09831273,91288.0,91267.0,0.0932]
[1767552175841,0.01096,91278.0,91260.0,0.10572415]
[1767552176444,0.01096,91278.0,91261.0,0.010962]
[1767552177247,0.01096,91275.0,91260.0,0.10572415]
[1767552177554,0.09220161,91273.0,91250.0,0.10572415]
[1767552177850,0.09831273,91271.0,91250.0,0.10572415]
[1767552178044,0.09831273,91271.0,91248.0,0.104164]
[1767552178045,0.10927473,91265.0,91248.0,0.0932]
[1767552178243,0.10927473,91265.0,91250.0,0.10572415]
[1767552178642,0.010962,91263.0,91250.0,0.10572415]
[1767552179351,0.010962,91258.0,91248.0,0.0932]
[1767552179542,0.11668515,91270.0,91248.0,0.0932]
[1767552179543,0.09831273,91262.0,91248.0,0.0932]
[1767552179744,0.10927473,91261.0,91248.0,0.0932]
[1767552179945,0.10927473,91261.0,91250.0,0.10572415]
[1767552180455,0.10927473,91261.0,91233.0,0.0932]
[1767552180456,0.18707545,91254.0,91233.0,0.0932]
[1767552180657,0.09106182,91250.0,91240.0,0.10572415]
[1767552181052,0.09106182,91250.0,91233.0,0.0932]
[1767552181053,0.09106182,91250.0,91234.0,0.010965]
[1767552181461,0.09106182,91250.0,91233.0,0.0932]
[1767552181653,0.09106182,91250.0,91217.0,0.010967]
[1767552181654,0.09106182,91246.0,91226.0,0.09228331]
[1767552181854,0.09106182,91246.0,91230.0,0.10572415]
[1767552182153,0.11668615,91260.0,91236.0,0.10572415]
[1767552182154,0.10697563,91260.0,91236.0,0.10572415]
[1767552182348,0.0932,91259.0,91250.0,0.10572415]
[1767552182549,0.104162,91258.0,91250.0,0.10572415]
[1767552182759,8.363e-05,91257.0,91250.0,0.10572415]
[1767552182952,8.363e-05,91257.0,91247.0,0.10572415]
[1767552183350,0.18426182,91266.0,91250.0,0.10572415]
[1767552183549,0.010962,91265.0,91250.0,0.10572415]
[1767552184156,0.10202382,91265.0,91245.0,0.010964]
[1767552184458,0.09106182,91265.0,91250.0,0.10572415]
[1767552190060,0.16466957,91290.0,91250.0,0.10572415]
[1767552190061,0.0932,91264.0,91250.0,0.10572415]
[1767552190859,0.09106182,91271.0,91250.0,0.10572415]
[1767552191061,0.0932,91270.0,91253.0,0.010963]
[1767552191356,0.010961,91269.0,91250.0,0.11668715]
[1767552191854,0.0932,91268.0,91250.0,0.11668715]
[1767552192361,0.0932,91268.0,91250.0,0.10572415]
[1767552192660,0.0932,91268.0,91251.0,0.010963]
[1767552192860,0.0932,91268.0,91253.0,0.010963]
[1767552193061,0.010962,91265.0,91250.0,0.10572415]
[1767552195268,0.09106182,91275.0,91255.0,0.10572415]
[1767552195559,0.0932,91274.0,91260.0,0.10572415]
[1767552195871,0.0932,91273.0,91262.0,0.010962]
[1767552196165,0.0932,91274.0,91264.0,0.010962]
[1767552197660,0.0932,91274.0,91262.0,0.010962]
[1767552197967,0.01096,91277.0,91262.0,0.010962]
[1767552199663,0.01096,91277.0,91264.0,0.010962]
[1767552200560,0.01096,91277.0,91261.0,0.010962]
[1767552201463,0.0932,91278.0,91261.0,0.010962]
[1767552201867,0.10202182,91279.0,91261.0,0.010962]
[1767552202068,0.0932,91278.0,91261.0,0.010962]
[1767552202267,0.0932,91278.0,91263.0,0.010962]
[1767552203463,0.18426182,91278.0,91263.0,0.010962]
[1767552205764,0.09106182,91277.0,91265.0,0.010962]
[1767552207869,0.09106182,91277.0,91263.0,0.010962]
[1767552208076,0.09106182,91277.0,91261.0,0.010962]
[1767552208269,0.09106182,91276.0,91261.0,0.010962]
[1767552208470,0.10202182,91275.0,91261.0,0.010962]
[1767552209475,0.09106182,91275.0,91248.0,0.104164]
[1767552209774,0.09106182,91266.0,91250.0,0.10572415]
[1767552210279,0.010961,91270.0,91257.0,0.010962]
[1767552210476,0.010961,91270.0,91260.0,0.10572415]
[1767552211174,0.09106182,91271.0,91260.0,0.10572415]
[1767552211375,0.09851995,91277.0,91260.0,0.10572415]
[1767552211577,0.10947995,91277.0,91260.0,0.10572415]
[1767552211769,0.10947995,91277.0,91260.0,0.11572415]
[1767552212377,1.0,91278.0,91268.0,0.010961]
[1767552212582,1.10416,91278.0,91267.0,0.10572415]
[1767552213077,1.0932,91278.0,91267.0,0.11668515]
[1767552213582,1.0,91278.0,91268.0,0.010961]
[1767552214078,1.0,91278.0,91270.0,0.010961]
[1767552215976,1.0,91278.0,91272.0,0.010961]
[1767552216474,1.0,91278.0,91269.0,0.010961]
[1767552216674,1.0,91278.0,91268.0,0.010961]
[1767552217278,0.09855044,91274.0,91260.0,0.10572415]
[1767552217483,0.09855044,91271.0,91262.0,0.010962]
[1767552217676,0.09855044,91270.0,91260.0,0.10572415]
[1767552217873,0.09855044,91270.0,91259.0,0.104162]
[1767552218189,0.09855044,91270.0,91260.0,0.11668615]
[1767552220176,0.09855044,91270.0,91262.0,0.010962]
[1767552220376,0.09855044,91270.0,91260.0,0.10572415]
[1767552220578,0.09855044,91269.0,91256.0,0.010963]
[1767552220780,0.09855044,91268.0,91257.0,0.010962]
[1767552220980,0.09855044,91268.0,91255.0,0.0932]
[1767552222181,0.09855044,91268.0,91257.0,0.010962]
[1767552222578,0.09855044,91268.0,91258.0,0.010962]
[1767552223491,0.09855044,91268.0,91255.0,0.0932]
[1767552223681,0.09820042,91266.0,91254.0,0.010963]
[1767552223988,0.19675086,91265.0,91254.0,0.010963]
[1767552224291,0.09855044,91264.0,91254.0,0.010963]
[1767552224588,0.09855044,91264.0,91254.0,0.00848452]
[1767552225391,0.10951244,91263.0,91250.0,0.010963]
[1767552225592,0.09855044,91263.0,91252.0,0.010963]
[1767552225782,0.09855044,91263.0,91254.0,0.010963]
[1767552226384,0.09855044,91263.0,91256.0,0.010963]
[1767552229693,0.09820042,91261.0,91249.0,0.0932]
[1767552229991,0.09855044,91260.0,91256.0,0.010963]
[1767552230385,0.09855044,91260.0,91249.0,0.0932]
[1767552230589,0.09855044,91260.0,91258.0,0.010962]
[1767552231095,4.4e-07,91260.0,91249.0,0.0932]
[1767552231296,0.09820042,91264.0,91249.0,0.0932]
[1767552231596,0.09820042,91264.0,91256.0,0.010963]
[1767552232296,0.09820042,91264.0,91249.0,0.0932]
[1767552232297,0.09820042,91264.0,91258.0,0.010962]
[1767552235199,0.19675086,91264.0,91258.0,0.010962]
[1767552235402,0.09855044,91261.0,91249.0,0.0932]
[1767552235900,0.09855044,91261.0,91256.0,0.010963]
[1767552236314,0.09855044,91261.0,91257.0,0.010962]
[1767552236802,0.09855044,91261.0,91249.0,0.0932]
[1767552236803,4.4e-07,91261.0,91258.0,0.010962]
[1767552237104,0.09820042,91262.0,91258.0,0.010962]
[1767552237301,0.010961,91272.0,91258.0,0.010962]
[1767552237501,0.01096,91274.0,91258.0,0.010962]
[1767552238702,0.09855044,91273.0,91258.0,0.010962]
[1767552239503,0.09820042,91272.0,91258.0,0.010962]
[1767552239705,0.09820042,91270.0,91251.0,0.010963]
[1767552240001,0.09820042,91268.0,91251.0,0.010963]
[1767552240202,0.0962777,91272.0,91252.0,0.08814345]
[1767552240394,0.0962777,91272.0,91266.0,0.010961]
[1767552240594,0.09095368,91273.0,91254.0,0.010963]
[1767552240798,0.09095368,91273.0,91252.0,0.08814345]
[1767552240799,0.09095368,91273.0,91264.0,0.010962]
[1767552241599,1.09095368,91278.0,91273.0,0.010961]
[1767552242106,1.0,91278.0,91273.0,0.010961]
[1767552242807,1.0,91278.0,91268.0,0.010961]
[1767552243202,1.0,91278.0,91270.0,0.010961]
[1767552243998,1.0,91278.0,91272.0,0.010961]
[1767552244302,0.158767,91278.0,91264.0,0.010962]
[1767552244602,0.158767,91278.0,91261.0,0.09850233]
[1767552244603,0.158767,91278.0,91272.0,0.010961]
[1767552244790,0.104159,91288.0,91272.0,0.010961]
[1767552244993,0.010959,91286.0,91269.0,0.010961]
[1767552245193,0.1072367,91286.0,91269.0,0.010961]
[1767552245406,0.18723138,91285.0,91271.0,0.010961]
[1767552245904,0.18723138,91285.0,91274.0,0.01096]
[1767552246905,0.010959,91287.0,91274.0,0.01096]
[1767552247301,0.28043138,91288.0,91274.0,0.01096]
[1767552247607,0.0962777,91287.0,91276.0,0.01096]
[1767552248010,0.09095368,91285.0,91262.0,0.09850233]
[1767552248208,0.0962777,91284.0,91262.0,0.09850233]
[1767552248409,0.0962777,91282.0,91269.0,0.010961]
[1767552248611,0.09095368,91281.0,91269.0,0.010961]
[1767552248808,0.0962777,91280.0,91269.0,0.010961]
[1767552249005,0.0962777,91280.0,91271.0,0.010961]
[1767552251216,0.0962777,91280.0,91274.0,0.01096]
[1767552252409,3.8e-07,91281.0,91262.0,0.10939662]
[1767552252614,0.0932,91290.0,91277.0,0.01096]
[1767552252813,0.104159,91290.0,91277.0,0.01096]
[1767552253504,0.104159,91290.0,91266.0,0.09850233]
[1767552253799,0.104159,91290.0,91274.0,0.01096]
[1767552254502,0.18723138,91288.0,91274.0,0.01096]
[1767552254703,0.09095368,91285.0,91272.0,0.010961]
[1767552255006,0.18723138,91284.0,91272.0,0.010961]
[1767552255205,0.0962777,91283.0,91272.0,0.010961]
[1767552256115,0.0962777,91281.0,91270.0,0.010961]
[1767552256317,0.0962777,91278.0,91260.0,0.0932]
[1767552256502,0.09095368,91275.0,91263.0,0.010962]